Workbook

Sheet 支出
B1: 活动预算[活动名称] | H1: 支出
B3: 总支出 | G3: 估计 | H3: 实际
G4: =SUM(C11,C19,C25,C32,G11,G19,G24) -> ¥882.00 | H4: =SUM(D11,D19,D25,D32,H11,H19,H24) -> ¥333.00
B6: 场地 | C6: 估计 | D6: 实际 | F6: 茶点 | G6: 估计 | H6: 实际
B7: 会议室和大厅费用 | C7: ¥500.00 | F7: 食物
B8: 现场人员 | F8: 饮料 | G8: ¥20.00
B9: 设备 | F9: 亚麻布 | H9: ¥20.00
B10: 桌椅 | F10: 服务人员和小费
B11: 汇总 | C11: =SUBTOTAL(109,表1[估计]) -> ¥500.00 | D11: =SUBTOTAL(109,表1[实际]) -> ¥0.00 | F11: 汇总 | G11: =SUBTOTAL(109,表3[估计]) -> ¥20.00 | H11: =SUBTOTAL(109,表3[实际]) -> ¥20.00
B13: 装饰 | C13: 估计 | D13: 实际 | F13: 节目 | G13: 估计 | H13: 实际
B14: 花卉 | C14: ¥200.00 | D14: ¥300.00 | F14: 执行者
B15: 蜡烛 | F15: 扬声器 | G15: ¥30.00
B16: 照明 | F16: 差旅
B17: 气球 | F17: 住宿
B18: 纸 | F18: 其他
B19: 汇总 | C19: =SUBTOTAL(109,表4[估计]) -> ¥200.00 | D19: =SUBTOTAL(109,表4[实际]) -> ¥300.00 | F19: 汇总 | G19: =SUBTOTAL(109,表5[估计]) -> ¥30.00 | H19: =SUBTOTAL(109,表5[实际]) -> ¥0.00
B21: 宣传 | C21: 估计 | D21: 实际 | F21: 奖品 | G21: 估计 | H21: 实际
B22: 图形工作 | F22: 绶带/奖章/奖品
B23: 影印/打印 | C23: ¥20.00 | F23: 礼品 | G23: ¥100.00
B24: 邮费 | F24: 汇总 | G24: =SUBTOTAL(109,表7[估计]) -> ¥100.00 | H24: =SUBTOTAL(109,表7[实际]) -> ¥0.00
B25: 汇总 | C25: =SUBTOTAL(109,表6[估计]) -> ¥20.00 | D25: =SUBTOTAL(109,表6[实际]) -> ¥0.00
B27: 杂项 | C27: 估计 | D27: 实际
B28: 电话 | D28: ¥13.00
B29: 交通 | C29: ¥12.00
B30: 文具
B31: 传真服务
B32: 汇总 | C32: =SUBTOTAL(109,表8[估计]) -> ¥12.00 | D32: =SUBTOTAL(109,表8[实际]) -> ¥13.00

Sheet 收入
B1: 活动预算[活动名称] | G1: 收入
B3: 总收入 | F3: 估计 | G3: 实际
F4: =SUM(F11, F18, F25, F33) -> ¥1,936.00 | G4: =SUM(G11,G18,G25, G33) -> ¥1,831.00
B6: 入场券
B7: 估计数量 | C7: 实际数量 | D7: 类型 | E7: 价格 | F7: 估计收益 | G7: 实际收益
B8: 300 | C8: 278 | D8: 成人数量 | E8: ¥5.00 | F8: =B8*E8 -> ¥1,500.00 | G8: =C8*E8 -> ¥1,390.00
B9: 197 | C9: 195 | D9: 儿童数量 | E9: ¥2.00 | F9: =B9*E9 -> ¥394.00 | G9: =C9*E9 -> ¥390.00
B10: 42 | C10: 51 | D10: 其他数量 | E10: ¥1.00 | F10: =B10*E10 -> ¥42.00 | G10: =C10*E10 -> ¥51.00
B11: 汇总 | F11: =SUBTOTAL(109,表9[估计收益]) -> ¥1,936.00 | G11: =SUBTOTAL(109,表9[实际收益]) -> ¥1,831.00
B13: 节目广告
B14: 估计数量 | C14: 实际数量 | D14: 类型 | E14: 价格 | F14: 估计收益 | G14: 实际收益
B15: 12 | D15: 封面数量 | F15: =B15*E15 -> ¥0.00 | G15: =C15*E15 -> ¥0.00
C16: 158 | D16: 半版数量 | F16: =B16*E16 -> ¥0.00 | G16: =C16*E16 -> ¥0.00
B17: 4 | D17: 四分之一版面数量 | F17: =B17*E17 -> ¥0.00 | G17: =C17*E17 -> ¥0.00
B18: 汇总 | F18: =SUBTOTAL(109,表10[估计收益]) -> ¥0.00 | G18: =SUBTOTAL(109,表10[实际收益]) -> ¥0.00
B20: 参展商/供应商
B21: 估计数量 | C21: 实际数量 | D21: 类型 | E21: 价格 | F21: 估计收益 | G21: 实际收益
B22: 23 | D22: 大型展厅数量 | F22: =B22*E22 -> ¥0.00 | G22: =C22*E22 -> ¥0.00
B23: 354 | D23: 中型展厅数量 | F23: =B23*E23 -> ¥0.00 | G23: =C23*E23 -> ¥0.00
B24: 56 | D24: 小型展厅数量 | F24: =B24*E24 -> ¥0.00 | G24: =C24*E24 -> ¥0.00
B25: 汇总 | F25: =SUBTOTAL(109,表11[估计收益]) -> ¥0.00 | G25: =SUBTOTAL(109,表11[实际收益]) -> ¥0.00
B27: 产品销售
B28: 估计数量 | C28: 实际数量 | D28: 类型 | E28: 价格 | F28: 估计收益 | G28: 实际收益
D29: 产品储量 | F29: =B29*E29 -> ¥0.00 | G29: =C29*E29 -> ¥0.00
B30: 123 | D30: 产品储量 | F30: =B30*E30 -> ¥0.00 | G30: =C30*E30 -> ¥0.00
D31: 产品储量 | F31: =B31*E31 -> ¥0.00 | G31: =C31*E31 -> ¥0.00
B32: 13 | D32: 产品储量 | F32: =B32*E32 -> ¥0.00 | G32: =C32*E32 -> ¥0.00
B33: 汇总 | F33: =SUBTOTAL(109,表12[估计收益]) -> ¥0.00 | G33: =SUBTOTAL(109,表12[实际收益]) -> ¥0.00

Sheet 利润损失汇总
B1: 活动预算[活动名称] | G1: 利润
G2: 损失汇总
C5: 估计 | D5: 实际
B6: 总收益 | C6: =收入!F4 -> ¥1,936.00 | D6: =收入!G4 -> ¥1,831.00
B7: 总支出 | C7: =支出!G4 -> ¥882.00 | D7: =支出!H4 -> ¥333.00
B9: 总利润（或损失） | C9: =C6-C7 -> ¥1,054.00 | D9: =D6-D7 -> ¥1,498.00
